bitfinex-derivatives/quotes_SOLF0:USTF0_20250523
["timestamp","ask_amount","ask_price","bid_price","bid_amount"]
[1748017472205,477.86,180.91,180.81,360.04215345]
[1748017472503,149.24,180.92,180.82,1.8917]
[1748017472707,149.24,180.93,180.85,0.03908525]
[1748017473907,149.24,180.92,180.85,0.03908525]
[1748017474209,5.5278,180.88,180.85,0.03908525]
[1748017474603,1.3464,180.99,180.85,0.03908525]
[1748017474802,151.2072,180.98,180.9,0.04231277]
[1748017475307,5.5266,180.91,180.9,0.04231277]
[1748017477105,5.5266,180.91,180.9,1.277e-05]
[1748017477500,11.0466,180.91,180.9,1.277e-05]
[1748017477696,5.5289,180.84,180.77,110.7471]
[1748017477900,149.22,180.87,180.79,5.53]
[1748017478697,0.03914332,180.85,180.81,0.04178666]
[1748017478896,5.5289,180.84,180.81,0.04178666]
[1748017479293,5.56764332,180.85,180.81,0.04178666]
[1748017479598,0.03914332,180.85,180.81,0.04178666]
[1748017479807,5.5289,180.84,180.81,0.04178666]
[1748017480501,5.5291,180.83,180.81,0.04178666]
[1748017481805,0.03914332,180.85,180.81,0.04178666]
[1748017482405,5.5288,180.84,180.81,0.04178666]
[1748017482907,5.5293,180.82,180.81,0.04178666]
[1748017483313,0.03914332,180.85,180.81,0.04178666]
[1748017484103,5.5293,180.82,180.81,0.04178666]
[1748017487609,5.5291,180.83,180.81,0.04178666]
[1748017488116,0.03914332,180.85,180.81,0.04178666]
[1748017488814,5.5293,180.82,180.81,0.04178666]
[1748017490013,5.5312,180.76,180.71,5.6549]
[1748017490204,148.34,180.79,180.71,5.6549]
[1748017490404,5.531,180.77,180.71,5.6549]
[1748017490801,0.0363778,180.76,180.72,0.04243962]
[1748017491901,148.34,180.84,180.76,5.5311]
[1748017492104,148.34,180.84,180.71,513.9949]
[1748017492817,5.5319,180.74,180.72,105.08]
[1748017493009,148.34,180.84,180.72,465.08]
[1748017493209,5.5309,180.77,180.76,0.03731077]
[1748017494115,148.34,180.79,180.67,465.1]
[1748017494420,148.34,180.79,180.66,105.1]
[1748017494615,149.6851,180.79,180.66,110.634]
[1748017494811,149.6851,180.79,180.65,148.34]
[1748017495010,0.03568078,180.74,180.65,253.44]
[1748017495214,0.03568078,180.74,180.7,0.03635658]
[1748017496817,5.56768078,180.74,180.7,0.03635658]
[1748017497216,0.03568078,180.74,180.7,0.03635658]
[1748017497415,5.5325,180.72,180.7,0.03635658]
[1748017497721,0.03568078,180.74,180.7,0.03635658]
[1748017498015,5.5327,180.71,180.7,0.03635658]
[1748017498812,148.38,180.73,180.7,0.03635658]
[1748017499221,0.03568078,180.74,180.7,0.03635658]
[1748017499515,0.03568078,180.74,180.71,105.1]
[1748017499718,0.03568078,180.74,180.71,470.6325]
[1748017500326,0.03568078,180.74,180.71,465.1]
[1748017501224,148.4,180.83,180.72,3.7438]
[1748017501427,5.5308,180.78,180.74,5.5317]
[1748017501623,148.4,180.83,180.74,360.0]
[1748017501813,10.06781334,180.86,180.72,17.82468893]
[1748017502017,0.03666768,180.81,180.8,5.5297]
[1748017502322,0.03731165,180.82,180.8,105.12]
[1748017502726,0.03731165,180.82,180.8,110.6497]
[1748017503321,0.03731165,180.82,180.8,105.12]
[1748017503614,5.56681165,180.82,180.8,105.12]
[1748017504619,0.03731165,180.82,180.8,105.12]
[1748017505224,0.03731165,180.82,180.8,110.6497]
[1748017505527,0.03731165,180.82,180.8,105.12]
[1748017505825,0.03731165,180.82,180.79,0.0394897]
[1748017507122,0.03731165,180.82,180.79,360.0394897]
[1748017507929,148.4,180.87,180.8,1.8137]
[1748017508229,148.4,180.87,180.83,5.5287]
[1748017508230,153.9281,180.87,180.83,5.5287]
[1748017508431,153.9281,180.87,180.83,110.6287]
[1748017508731,5.5281,180.87,180.83,110.6287]
[1748017508920,5.5281,180.86,180.83,105.14129046]
[1748017509231,148.36,180.91,180.83,105.14129046]
[1748017510232,14.08088893,180.9,180.83,0.04129046]
[1748017510433,14.08088893,180.9,180.75,105.1]
[1748017510629,5.5307,180.78,180.75,105.1]
[1748017510933,148.36,180.8,180.75,105.1]
[1748017511132,148.36,180.81,180.75,105.1]
[1748017511332,0.03773908,180.8,180.76,0.03920564]
[1748017512437,5.5305,180.79,180.76,0.03920564]
[1748017512936,5.5308,180.78,180.76,0.03920564]
[1748017513230,0.03773908,180.8,180.76,0.03920564]
[1748017513628,5.5308,180.78,180.76,0.03920564]
[1748017513834,0.03773908,180.8,180.76,0.03920564]
[1748017514735,0.03773908,180.8,180.6,5.09765556]
[1748017514952,583.06,180.79,180.61,1.9499]
[1748017515440,477.96,180.79,180.61,1.9499]
[1748017515736,5.5335,180.69,180.68,0.03881542]
[1748017515937,0.04001405,180.72,180.67,0.03585585]
[1748017516135,0.03491327,180.71,180.68,0.04254715]
[1748017516333,0.04229546,180.71,180.68,0.04254715]
[1748017516737,5.5333,180.69,180.68,0.04254715]
[1748017517839,5.5333,180.69,180.68,4.715e-05]
[1748017526646,5.533,180.7,180.68,4.715e-05]
[1748017526849,0.04229546,180.71,180.68,4.715e-05]
[1748017527743,147.46,180.76,180.68,5.53354715]
[1748017528050,147.46,180.8,180.69,147.46]
[1748017528543,147.46,180.8,180.69,105.16]
[1748017528745,0.03740533,180.76,180.73,0.03566587]
[1748017529340,5.5303,180.79,180.74,147.46]
[1748017529540,5.5303,180.79,180.75,3.7748]
[1748017529747,635.74960361,180.88,180.76,19.6341839]
[1748017529952,635.74960361,180.88,180.77,105.16]
[1748017530246,5.5294,180.82,180.81,0.03800381]
[1748017530642,0.04069969,180.84,180.81,0.03800381]
[1748017530844,2.53,180.83,180.81,0.03800381]
[1748017531739,5.5292,180.82,180.81,0.03800381]
[1748017533049,0.04069969,180.84,180.81,0.03800381]
[1748017533647,147.44,180.92,180.81,0.03800381]
[1748017533846,147.44,180.92,180.79,147.4]
[1748017534446,147.44,180.92,180.81,5.5295]
[1748017534649,0.02185326,180.88,180.85,0.04006353]
[1748017535150,5.5283,180.86,180.85,0.04006353]
[1748017538352,5.5278,180.87,180.85,0.04006353]
[1748017538651,0.02185326,180.88,180.85,0.04006353]
[1748017538847,5.528,180.86,180.85,0.04006353]
[1748017542855,0.02185326,180.88,180.85,360.04006353]
[1748017543461,5.5278,180.87,180.85,360.04006353]
[1748017543754,0.02185326,180.88,180.85,360.04006353]
[1748017544451,5.528,180.86,180.85,0.04006353]
[1748017547160,0.02185326,180.88,180.85,0.04006353]
[1748017547864,5.54935326,180.88,180.85,0.04006353]
[1748017548059,0.02185326,180.88,180.85,0.04006353]
[1748017548656,5.5277,180.87,180.85,0.04006353]
[1748017548864,0.02185326,180.88,180.85,0.04006353]
[1748017549158,147.8862,180.95,180.86,152.008]
[1748017549159,5.5268,180.91,180.86,152.008]
[1748017549364,5.5268,180.91,180.86,146.48]
[1748017549667,146.48,180.99,180.87,1.9075]
[1748017549967,146.48,180.99,180.88,105.08]
[1748017550169,146.48,180.99,180.92,0.04044938]
[1748017550469,5.5259,180.93,180.92,360.04044938]
[1748017550768,5.5259,180.93,180.92,0.04044938]
[1748017551571,5.5259,180.93,180.92,4.938e-05]
[1748017560287,0.03835389,180.94,180.92,4.938e-05]
[1748017560482,626.2079,181.06,180.92,4.938e-05]
[1748017560682,626.2079,181.06,180.91,150.1694]
[1748017560981,626.2079,181.06,180.93,5.5257]
[1748017561281,626.2079,181.06,180.93,360.0]
[1748017561487,148.3605,181.09,180.98,0.03720471]
[1748017561675,148.3605,181.09,181.02,0.03997609]
[1748017562091,5.5226,181.04,181.02,0.03997609]
[1748017562278,148.3605,181.09,181.02,0.03997609]
[1748017562587,11.0364,181.19,181.02,0.03997609]
[1748017562588,489.59020361,181.16,181.02,0.03997609]
[1748017562778,146.4,181.13,181.07,0.03515347]
[1748017562975,15.58850361,181.16,181.09,5.5209]
[1748017563280,10.06960361,181.16,181.11,0.03820365]
[1748017564290,16.60123987,181.3,181.11,0.03820365]
[1748017564291,163.00123987,181.3,181.11,0.03820365]
[1748017564486,3.9765,181.25,181.15,0.04202424]
[1748017564686,3.9765,181.25,181.15,105.06202424]
[1748017564986,146.4,181.24,181.15,0.04202424]
[1748017565189,5.5189,181.16,181.15,0.04202424]
[1748017566088,146.34,181.19,181.15,0.04202424]
[1748017566389,146.34,181.23,181.15,0.04202424]
[1748017567089,5.518,181.19,181.15,0.04202424]
[1748017567386,146.34,181.23,181.15,0.04202424]
[1748017567891,104.98,181.22,181.0,1.8624]
[1748017568088,14.1031839,181.17,181.0,1.8624]
[1748017568288,148.2887,181.16,181.0,1.8624]
[1748017568492,148.2887,181.16,180.99,104.98]
[1748017568691,1.7987,181.15,180.99,104.98]
[1748017568986,0.03648479,181.09,181.05,0.03637423]
[1748017569787,5.5216,181.08,181.05,0.03637423]
[1748017570582,5.5216,181.07,181.05,0.03637423]
[1748017570879,0.03648479,181.09,181.05,0.03637423]
[1748017571584,5.5214,181.08,181.05,0.03637423]
[1748017571993,0.03648479,181.09,181.05,0.03637423]
[1748017577794,5.55748479,181.09,181.05,0.03637423]
[1748017577995,0.03648479,181.09,181.05,0.03637423]
[1748017578696,477.2,181.32,181.08,14.1031839]
[1748017578900,5.5189,181.16,181.09,114.1886]
[1748017579097,5.7845,181.24,181.09,108.6677]
[1748017579098,145.38,181.2,181.09,108.6677]
[1748017579601,159.4831839,181.2,181.04,584.0537]
[1748017579789,159.4831839,181.2,181.12,0.04012043]
[1748017579988,5.5198,181.13,181.12,0.04012043]
[1748017580293,145.38,181.14,181.12,0.04012043]
[1748017580486,5.5198,181.13,181.12,0.04012043]
[1748017586996,5.5194,181.15,181.12,0.04012043]
[1748017587201,145.36,181.19,181.12,0.04012043]
[1748017587397,477.2,181.21,181.12,360.04012043]
[1748017587597,477.2,181.21,181.13,104.92]
[1748017587797,145.36,181.23,181.13,104.92]
[1748017587997,145.36,181.23,181.16,0.03920263]
[1748017588202,5.5186,181.17,181.16,0.03920263]
[1748017589199,145.36,181.23,181.16,0.03920263]
[1748017589806,3.8997,181.24,181.16,0.03920263]
[1748017589995,145.34,181.26,181.16,0.03920263]
[1748017590305,145.34,181.26,181.19,0.04062451]
[1748017590608,5.5179,181.2,181.19,0.04062451]
[1748017594307,1.9673,181.29,181.19,0.04062451]
[1748017594508,147.2873,181.29,181.19,0.04062451]
[1748017595906,1.9673,181.29,181.19,0.04062451]
[1748017596213,5.5164,181.25,181.19,0.04062451]
[1748017596514,5.5165,181.24,181.2,5.55333007]
[1748017596712,5.5165,181.24,181.21,104.88]
[1748017597213,145.3,181.31,181.21,110.3974]
[1748017597416,145.3,181.31,181.24,0.04215448]
[1748017597915,5.5161,181.26,181.24,0.04215448]
[1748017598310,5.5156,181.27,181.24,0.04215448]
[1748017598510,145.3,181.31,181.24,0.04215448]
[1748017598909,5.5155,181.28,181.24,0.04215448]
[1748017599110,145.3,181.31,181.24,0.04215448]
[1748017599510,5.5156,181.27,181.24,0.04215448]
[1748017599911,149.0588,181.34,181.24,0.04215448]
[1748017603018,5.516,181.26,181.24,0.04215448]
[1748017603218,149.0588,181.34,181.24,0.04215448]
[1748017603513,1.9177,181.35,181.24,0.04215448]
[1748017603716,146.2777,181.35,181.28,0.04037689]
[1748017604216,5.5149,181.29,181.28,0.04037689]
[1748017604817,5.5147,181.3,181.28,0.04037689]
[1748017605310,146.2777,181.35,181.28,0.04037689]
[1748017606418,5.5149,181.29,181.28,0.04037689]
[1748017606821,146.2777,181.35,181.28,0.04037689]
[1748017607319,5.5144,181.31,181.28,0.04037689]
[1748017607717,144.34,181.34,181.28,0.04037689]
[1748017608017,3.8875,181.38,181.28,0.04037689]
[1748017608212,144.34,181.36,181.3,5.5145]
[1748017608417,5.5135,181.34,181.31,0.04171334]
[1748017608622,144.34,181.36,181.31,0.04171334]
[1748017609219,149.8529,181.36,181.31,0.04171334]
[1748017609519,144.34,181.36,181.31,0.04171334]
[1748017609819,148.2275,181.38,181.31,0.04171334]
[1748017611417,5.5136,181.34,181.31,0.04171334]
[1748017611917,148.2275,181.38,181.31,0.04171334]
[1748017612116,5.5139,181.33,181.31,0.04171334]
[1748017612317,148.2275,181.38,181.31,0.04171334]
[1748017612816,5.5137,181.34,181.31,0.04171334]
[1748017613225,148.2275,181.38,181.31,0.04171334]
[1748017614019,5.5131,181.35,181.31,0.04171334]
[1748017614219,148.2275,181.38,181.31,0.04171334]
[1748017614622,5.5136,181.34,181.31,0.04171334]
[1748017615117,148.2275,181.38,181.31,0.04171334]
[1748017616229,5.514,181.32,181.31,0.04171334]
[1748017616426,148.2275,181.38,181.31,0.04171334]
[1748017616923,5.5139,181.33,181.31,0.04171334]
[1748017617121,148.2275,181.38,181.31,0.04171334]
[1748017617327,5.5135,181.34,181.31,0.04171334]
[1748017617530,148.2275,181.38,181.31,0.04171334]
[1748017617922,5.5134,181.35,181.31,0.04171334]
[1748017618931,5.5134,181.34,181.31,0.04171334]
[1748017619228,148.2275,181.38,181.31,0.04171334]
[1748017622231,146.2677,181.41,181.31,0.04171334]
[1748017622430,146.2677,181.41,181.33,8.59246657]
[1748017622632,146.2677,181.41,181.35,0.03624016]
[1748017622824,5.5124,181.38,181.35,0.03624016]
[1748017623535,5.5126,181.37,181.35,0.03624016]
[1748017623832,146.2677,181.41,181.35,0.03624016]
[1748017624532,476.92,181.42,181.35,104.83624016]
[1748017624736,144.3,181.44,181.35,104.83624016]
[1748017625128,5.5119,181.39,181.35,104.83624016]
[1748017625428,144.3,181.44,181.35,110.34934016]
[1748017625633,3.758,181.46,181.35,464.83624016]
[1748017625935,148.038,181.46,181.39,0.03913887]
[1748017626435,5.511,181.42,181.39,0.03913887]
[1748017626823,148.038,181.46,181.39,0.03913887]
[1748017627028,3.758,181.46,181.39,360.03913887]
[1748017627330,5.5101,181.45,181.39,360.03913887]
[1748017627532,1.8893,181.47,181.4,8.59246657]
[1748017628230,5.51,181.46,181.4,8.59246657]
[1748017629239,1.8893,181.47,181.4,8.59246657]
[1748017629729,144.28,181.5,181.4,360.0]
[1748017629929,144.28,181.5,181.43,0.0355772]
[1748017630231,5.5086,181.5,181.44,104.78]
[1748017630828,144.26,181.56,181.44,104.78]
[1748017630829,3.8638,181.55,181.44,464.78]
[1748017631131,1.9317,181.55,181.51,5.508]
[1748017631337,620.68,181.61,181.52,104.78]
[1748017631527,620.68,181.61,181.55,0.03800835]
[1748017631832,5.5067,181.56,181.55,0.03800835]
[1748017632029,620.68,181.61,181.55,0.03800835]
[1748017632428,5.5067,181.56,181.55,0.03800835]
[1748017632629,476.42,181.61,181.55,0.03800835]
[1748017632829,5.5059,181.59,181.55,0.03800835]
[1748017633137,143.22,181.6,181.55,0.03800835]
[1748017633434,5.5053,181.61,181.55,5.54500835]
[1748017633630,1.9317,181.62,181.55,0.03800835]
[1748017633938,5.5059,181.59,181.55,0.03800835]
[1748017634235,143.22,181.68,181.55,360.03800835]
[1748017634435,1.8789,181.67,181.6,0.03936296]
[1748017634933,5.5045,181.64,181.6,0.03936296]
[1748017635135,1.8789,181.67,181.6,0.03936296]
[1748017636445,145.0589,181.67,181.6,0.03936296]
[1748017637239,146.9311,181.69,181.63,5.5043]
[1748017637437,146.9311,181.69,181.64,0.03632856]
[1748017637640,3.7511,181.69,181.64,0.03632856]
[1748017638036,3.7511,181.69,181.64,5.54062856]
[1748017638338,5.5024,181.71,181.65,104.7]
[1748017638533,5.5024,181.71,181.66,0.03802142]
[1748017638744,145.1133,181.73,181.66,0.03802142]
[1748017639041,5.5029,181.69,181.66,0.03802142]
[1748017639544,1.9733,181.73,181.66,0.03802142]
[1748017640543,143.14,181.74,181.66,0.03802142]
[1748017640738,5.5027,181.7,181.66,0.03802142]
[1748017640939,143.14,181.74,181.66,0.03802142]
[1748017641134,5.5025,181.7,181.66,0.03802142]
[1748017641338,143.14,181.74,181.66,0.03802142]
[1748017641841,1.9227,181.73,181.54,3.6592]
[1748017642042,1.9227,181.73,181.55,261.74193432]
[1748017642043,5.7024,181.73,181.55,261.74193432]
[1748017642240,143.1,181.72,181.59,13.98193432]
[1748017642440,5.7024,181.73,181.63,5.5046]
[1748017642740,5.7024,181.73,181.63,104.66]
[1748017642741,148.8024,181.73,181.63,104.66]
[1748017642942,0.03494606,181.7,181.66,0.04200107]
[1748017643333,5.5034,181.67,181.66,0.04200107]
[1748017643942,143.08,181.68,181.66,0.04200107]
[1748017644244,0.03494606,181.7,181.66,0.04200107]
[1748017645548,0.03494606,181.7,181.67,5.5033]
[1748017646446,0.03494606,181.7,181.68,5.503]
[1748017646644,0.03494606,181.7,181.66,143.08200107]
[1748017647152,143.04,181.87,181.69,13.98193432]
[1748017647448,3.7829,181.84,181.69,13.98193432]
[1748017647644,5.5004,181.77,181.69,13.98193432]
[1748017647849,143.04,181.82,181.66,157.02193432]
[1748017648044,143.04,181.82,181.72,0.03980121]
[1748017648741,5.5005,181.77,181.72,5.54160121]
[1748017648951,143.04,181.82,181.72,0.03980121]
[1748017649248,146.8229,181.84,181.72,143.07980121]
[1748017649442,146.8229,181.84,181.76,0.04106262]
[1748017650036,5.5001,181.78,181.76,0.04106262]
[1748017650240,146.8229,181.84,181.76,0.04106262]
[1748017650450,5.5001,181.78,181.76,0.04106262]
[1748017650946,5.5002,181.78,181.76,0.04106262]
[1748017651145,146.8229,181.84,181.76,0.04106262]
[1748017652250,146.8229,181.84,181.71,104.62]
[1748017653148,142.98,181.83,181.71,104.62]
[1748017653346,0.03650239,181.79,181.75,0.03565705]
[1748017654049,0.03650239,181.79,181.75,5.53645705]
[1748017655153,0.03650239,181.79,181.75,0.03565705]
[1748017657455,0.03650239,181.79,181.78,5.5001]
[1748017657650,1.9162,181.9,181.75,0.03565705]
[1748017657859,3.8355,181.9,181.77,13.98193432]
[1748017658051,3.8355,181.9,181.81,13.98193432]
[1748017658249,1.9384,181.93,181.82,104.56]
[1748017658558,5.4963,181.91,181.83,142.96]
[1748017658856,1.9384,181.93,181.85,0.03721082]
[1748017659459,5.4976,181.86,181.85,0.03721082]
[1748017659659,142.94,181.91,181.85,0.03721082]
[1748017659859,1.9384,181.93,181.85,0.03721082]
[1748017660361,146.6915,181.97,181.85,14.01914514]
[1748017660553,5.4953,181.94,181.89,0.03860795]
[1748017660753,3.7515,181.97,181.89,0.03860795]
[1748017661149,1.8036,181.99,181.9,104.54]
[1748017661457,1.8036,181.99,181.93,0.03978112]
[1748017661951,5.4952,181.94,181.93,0.03978112]
[1748017663257,1.8036,181.99,181.93,0.03978112]
[1748017666765,1.8036,181.99,181.9,104.54]
[1748017667166,141.88,181.98,181.9,104.54]
[1748017667365,141.88,181.98,181.87,104.5]
[1748017667665,0.04076156,181.94,181.91,0.03866167]
[1748017669464,141.86,182.03,181.91,0.03866167]
[1748017669663,141.86,182.03,181.9,155.84193432]
[1748017669966,5.4932,182.01,181.9,155.84193432]
[1748017670171,143.7445,182.04,181.9,155.84193432]
[1748017670364,5.493,182.02,181.95,0.03906805]
[1748017670870,5.4932,182.01,181.95,0.03906805]
[1748017671667,1.9272,182.05,181.95,0.03906805]
[1748017672570,5.4929,182.02,181.97,5.4942]
[1748017672767,1.9272,182.05,181.98,0.0358853]
[1748017673967,3.8069,182.08,181.98,0.0358853]
[1748017674173,10.60681746,182.1,181.98,14.01781962]
[1748017674466,10.60681746,182.1,182.02,5.53058001]
[1748017674670,10.60681746,182.1,182.02,0.03778001]
[1748017674973,5.4919,182.06,182.02,0.03778001]
[1748017675273,10.60681746,182.1,182.02,0.03778001]
[1748017676282,5.4922,182.05,182.02,0.03778001]
[1748017676679,141.82,182.08,182.02,0.03778001]
[1748017676977,1.8831,182.07,182.02,0.03778001]
[1748017677371,141.82,182.08,182.02,0.03778001]
[1748017677569,10.60681746,182.1,182.02,0.03778001]
[1748017678772,5.4911,182.08,182.03,5.4923]
[1748017678963,10.60681746,182.1,182.02,0.03778001]
[1748017679363,5.4918,182.06,182.02,0.03778001]
[1748017679575,10.60681746,182.1,182.02,0.03778001]
[1748017679775,141.76,182.09,182.02,0.03778001]
[1748017680176,152.36681746,182.1,182.02,0.03778001]
[1748017681276,152.36681746,182.1,181.94,104.4]
[1748017681470,5.4922,182.05,181.99,5.4937]
[1748017681673,141.76,182.04,181.93,474.94]
[1748017682178,147.2525,182.04,181.93,474.94]
[1748017682381,0.04001321,182.0,181.97,0.03970934]
[1748017684279,0.04001321,182.0,181.9,141.76]
[1748017684280,141.76,181.99,181.9,141.76]
[1748017684481,141.76,181.99,181.87,106.3067]
[1748017684672,474.76,182.08,181.9,13.98193432]
[1748017684881,616.52,182.08,181.91,141.76]
[1748017685182,143.7208,182.09,181.93,13.98193432]
[1748017685481,0.03756203,182.03,181.99,0.04066858]
[1748017685875,0.03756203,182.03,182.02,5.4929]
[1748017688276,157.87731746,182.1,182.06,5.4914]
[1748017688482,10.60681746,182.1,182.05,13.98193432]
[1748017688677,141.76,182.2,182.06,104.42]
[1748017688882,141.76,182.2,182.09,13.98193432]
[1748017689281,0.04170406,182.16,182.13,0.04114612]
[1748017691083,1.9287,182.23,182.13,14.02308044]
[1748017691582,1.9287,182.23,182.15,5.4889]
[1748017691784,1.9287,182.23,182.15,104.38]
[1748017691989,1.9287,182.23,182.08,104.38]
[1748017692191,1.9287,182.23,182.09,5.4905]
[1748017692380,1.9287,182.23,182.14,0.03889053]
[1748017692691,5.489,182.15,182.14,0.03889053]
[1748017692982,141.72,182.18,182.04,140.86]
[1748017693180,5.4905,182.1,182.05,109.8717]
[1748017693381,5.4905,182.1,182.05,104.38]
[1748017693689,1.9196,182.14,182.05,104.38]
[1748017693990,0.03467822,182.11,182.08,0.03573604]
[1748017695790,5.4906,182.1,182.08,0.03573604]
[1748017696093,0.03467822,182.11,182.08,0.03573604]
[1748017696889,140.89467822,182.11,182.08,0.03573604]
[1748017697393,0.03467822,182.11,182.08,0.03573604]
[1748017698593,5.4908,182.09,182.08,0.03573604]
[1748017699499,5.4923,182.04,182.01,104.36]
[1748017699692,140.86,182.08,182.01,104.36]
[1748017699895,142.7173,182.07,182.01,104.36]
[1748017700496,142.7173,182.07,182.02,0.03820869]
[1748017700800,0.03616632,182.06,182.02,0.03820869]
[1748017701603,5.4926,182.03,182.02,0.03820869]
[1748017702603,0.03616632,182.06,182.02,0.03820869]
[1748017703593,0.03616632,182.06,182.05,5.492]
[1748017703793,0.03616632,182.06,182.02,0.03820869]
[1748017704596,140.88,182.05,182.02,0.03820869]
[1748017704994,142.7576,182.05,181.98,109.2424476]
[1748017705302,142.7576,182.05,181.89,10.25946493]
[1748017705501,142.7576,182.05,181.89,114.63946493]
[1748017705798,1.8776,182.05,181.96,5.4947]
[1748017706002,0.04146716,182.02,181.99,0.03693111]
[1748017707008,5.53446716,182.02,181.99,0.03693111]
[1748017707202,0.04146716,182.02,181.99,0.03693111]
[1748017707707,5.4935,182.01,181.99,0.03693111]
[1748017708204,0.04146716,182.02,181.99,0.03693111]
[1748017708706,5.4934,182.01,181.99,0.03693111]
[1748017709006,0.04146716,182.02,181.99,0.03693111]
[1748017709505,140.9,182.01,181.99,0.03693111]
[1748017709705,1.9504,182.0,181.99,0.03693111]
[1748017710295,5.4944,181.98,181.92,146.3757]
[1748017710613,1.9504,182.0,181.86,19.63373432]
[1748017710800,1.9504,182.0,181.88,104.4]
[1748017711004,1.9504,182.0,181.86,3.6996]
[1748017711305,13.98193432,181.99,181.91,0.03669451]
[1748017711513,0.0382151,181.95,181.85,5.09236839]
[1748017711710,140.9,181.94,181.85,5.09236839]
[1748017711908,1.8729,181.93,181.85,5.09236839]
[1748017712409,0.0348303,181.91,181.87,0.03842549]
[1748017712914,5.4971,181.89,181.87,0.03842549]
[1748017713313,140.92,181.88,181.87,0.03842549]
[1748017713611,146.4171,181.88,181.87,0.03842549]
[1748017713809,140.92,181.88,181.87,0.03842549]
[1748017714011,0.0348303,181.91,181.87,0.03842549]
[1748017715216,0.0348303,181.91,181.88,5.4968]
[1748017715811,0.0348303,181.91,181.9,5.4965]
[1748017716012,0.0348303,181.91,181.87,0.03842549]
[1748017716616,0.0348303,181.91,181.88,5.497]
[1748017716816,0.0348303,181.91,181.87,0.03842549]
[1748017717916,0.0348303,181.91,181.88,5.497]
[1748017718116,0.0348303,181.91,181.87,0.03842549]
[1748017718912,0.0348303,181.91,181.88,5.497]
[1748017719119,0.0348303,181.91,181.87,0.03842549]
[1748017719819,0.0348303,181.91,181.88,5.497]
[1748017721017,5.5310303,181.91,181.88,5.497]
[1748017721317,0.0348303,181.91,181.87,0.03842549]
[1748017722118,0.0348303,181.91,181.87,6.03842549]
[1748017722817,0.0348303,181.91,181.9,5.4965]
[1748017724518,0.0348303,181.91,181.89,5.4967]
[1748017724721,0.0348303,181.91,181.87,6.03842549]
[1748017724922,0.0348303,181.91,181.9,5.4965]
[1748017729122,0.0348303,181.91,181.87,6.03842549]
[1748017729627,0.0348303,181.91,181.88,5.4969]
[1748017730023,0.0348303,181.91,181.87,6.03842549]
[1748017730822,0.0348303,181.91,181.79,3.8193]
[1748017731030,17.80393432,181.92,181.79,3.8193]
[1748017731728,0.04165594,181.87,181.84,0.0396397]
[1748017732029,140.24165594,181.87,181.84,0.0396397]
[1748017732731,5.4979,181.86,181.84,0.0396397]
[1748017732924,140.24165594,181.87,181.84,0.0396397]
[1748017733826,5.498,181.85,181.84,0.0396397]
[1748017736728,0.04165594,181.87,181.84,0.0396397]
[1748017737830,0.04165594,181.87,181.84,104.5196397]
[1748017738030,0.04165594,181.87,181.86,5.4977]
[1748017738535,0.04165594,181.87,181.84,110.0178397]
[1748017738833,0.04165594,181.87,181.84,104.5196397]
[1748017739030,0.04165594,181.87,181.85,5.498]
[1748017739229,140.24,181.96,181.85,5.5]
[1748017739434,140.24,181.96,181.84,104.48]
[1748017739633,140.24,181.96,181.86,140.24]
[1748017740236,0.04210406,181.93,181.89,0.03956342]
[1748017742634,0.04210406,181.93,181.92,5.4959]
[1748017742833,0.04210406,181.93,181.92,109.9559]
[1748017743429,0.04210406,181.93,181.92,104.46]
[1748017743630,0.04210406,181.93,181.89,0.03956342]
[1748017744641,5.53780406,181.93,181.89,5.53616342]
[1748017744843,0.04210406,181.93,181.89,5.53616342]
[1748017745242,0.04210406,181.93,181.89,0.03956342]
[1748017745742,5.4959,181.92,181.89,0.03956342]
[1748017745941,0.04210406,181.93,181.89,0.03956342]
[1748017746342,5.4965,181.9,181.89,0.03956342]
[1748017750447,5.4959,181.92,181.89,0.03956342]
[1748017750643,0.04210406,181.93,181.89,0.03956342]
[1748017752135,0.04210406,181.93,181.79,140.22]